Cogmind - Beta 14 X2 @@@ ROGUE MODE // 2024.08.02 @ 23:35:50 Player: Olafz Result: Destroyed by S-10 Pest with Light Assault Rifle Performance ------------- Evolutions (1) 500 Regions Visited (3) 600 Robots Destroyed (0) 0 Value Destroyed (0) 0 Prototype IDs (0) 0 Alien Tech Used (0) 0 Bonus (200) 200 TOTAL SCORE: 1300 Bonus ------- Pacifist 200 Cogmind --------- Core Integrity 0/400 Matter 295/300 Energy 99/100 System Corruption 5% Temperature Cool (0) Movement Core (50) Location -9/Mines Parts ------- > --- POWER (1) -------- (None) > --- PROPULSION (2) --- (None) > --- UTILITY (4) ------ (None) > --- WEAPON (2) ------- (None) > --- INVENTORY (5) ---- Nuclear Core Light Treads Compact Wheel Mining Laser Welding Torch Peak State ------------ > --- POWER ------------ Nuclear Core > --- PROPULSION ------- Aluminum Leg Aluminum Leg > --- UTILITY ---------- Small Storage Unit > --- WEAPON ----------- (None) > --- INVENTORY -------- Nuclear Core Light Treads Light Treads Wheel Wheel Compact Wheel Mining Laser Welding Torch [Rating: 7] Favorites ----------- Power Ion Engine Engine Ion Engine Power Core Nuclear Core Propulsion Aluminum Leg Leg Aluminum Leg Wheel Wheel Utility Small Storage Unit Storage Small Storage Unit Weapon Medium Laser Energy Gun Medium Laser Build | -11 -10 -9 -9 ------- Run | Yrd Mat Mat Min Slots Evolved 2 | . . 2 . Power . | . . . . Propulsion . | . . . . Utility 2 | . . 2 . Weapon . | . . . . Parts Attached 3 | . . 3 . Power 1 | . . 1 . Engine . | . . . . Core 1 | . . 1 . Reactor . | . . . . Propulsion 2 | . . 2 . Treads . | . . . . Leg . | . . . . Wheel 2 | . . 2 . Hover . | . . . . Flight . | . . . . Utility . | . . . . Device . | . . . . Storage . | . . . . Processor . | . . . . Hackware . | . . . . Protection . | . . . . Artifact . | . . . . Weapon . | . . . . Energy Gun . | . . . . Energy Cannon . | . . . . Ballistic Gun . | . . . . Ballistic Cannon . | . . . . Launcher . | . . . . Special Weapon . | . . . . Impact Weapon . | . . . . Slashing Weapon . | . . . . Piercing Weapon . | . . . . Special Melee Weapon . | . . . . Unidentified Prototypes . | . . . . Parts Lost 3 | . . 3 . Power 1 | . . 1 . Propulsion 2 | . . 2 . Utility . | . . . . Weapon . | . . . . Highest Loss Streak 3 | . . 3 . To Critical Strikes . | . . . . Average Slot Usage (%) 38 | . 85 47 8 Engine 5 | . 14 6 . Core 1 | . . 3 . Leg 13 | . 28 20 . Wheel 2 | . . 1 5 Storage 8 | . 14 11 2 Energy Gun 7 | . 28 5 . Naked Turns 115 | . . . 115 Heaviest Build 13 | 13 13 13 5 Greatest Support 20 | 20 20 20 20 Greatest Overweight (x) 1 | . . . 1 Average Overweight (x) . | . . . . Largest Inventory Capacity 8 | . 8 8 8 Average Capacity 7 | . 8 8 5 Most Carried 8 | . 8 8 6 Average Carried 6 | . 7 7 5 Final Capacity 8 | 8 8 8 5 Final Carried 8 | 6 8 6 5 Class Distribution -------------------- 100% | Mutant Dominant Class ---------------- Mutant | -10/Materials Mutant | -9/Materials Mutant | -9/Mines Resources | -11 -10 -9 -9 ----------- Run | Yrd Mat Mat Min Matter Collected 191 | 191 . . . Remotely . | . . . . Salvage Created . | . . . . Parts . | . . . . Haulers Intercepted . | . . . . Recyclers Shooed . | . . . . Parts Field Recycled . | . . . . Retrieved Matter . | . . . . Parts Self-Destructed . | . . . . Prevented . | . . . . Kills | -11 -10 -9 -9 ------- Run | Yrd Mat Mat Min Combat Hostiles Destroyed . | . . . . Classes Destroyed . | . . . . Best Kill Streak . | . . . . Combat Bots Only . | . . . . Max Kills in Single Turn . | . . . . Gunslinging . | . . . . Exploded . | . . . . Melee . | . . . . Uniques/NPCs Destroyed . | . . . . Combat | -11 -10 -9 -9 -------- Run | Yrd Mat Mat Min Hostile Shots Fired 118 | . 3 77 38 Missed 43 | . 2 31 10 Damage Taken 797 | . 12 438 347 Core 404 | . . 132 272 Absorbed by Shields . | . . . . Core Remaining (%) 100 | 100 100 . . Volleys Fired . | . . . . Largest . | . . . . Hottest . | . . . . Shots Fired . | . . . . Gun . | . . . . Cannon . | . . . . Launcher . | . . . . Special . | . . . . Kinetic . | . . . . Thermal . | . . . . Explosive . | . . . . Electromagnetic . | . . . . Robot Hit Streak . | . . . . Robot Miss Streak . | . . . . Penetration Max . | . . . . Secondary Targets . | . . . . Shots Hit Robots . | . . . . Core Hits . | . . . . Critical Kills . | . . . . Critical Parts Destroyed . | . . . . Critical Strikes . | . . . . Melee Attacks . | . . . . Impact . | . . . . Slashing . | . . . . Piercing . | . . . . Sneak Attacks . | . . . . Combat Hostiles . | . . . . Follow-up Attacks . | . . . . Damage Inflicted 45 | . . 23 22 Guns . | . . . . Cannons . | . . . . Explosions . | . . . . Melee . | . . . . Ramming 45 | . . 23 22 Kinetic . | . . . . Thermal . | . . . . Explosive . | . . . . Electromagnetic . | . . . . Impact . | . . . . Slashing . | . . . . Piercing . | . . . . Highest Corruption 5 | . . 2 5 Average Corruption 3 | . . 2 4 Corruption Purged . | . . . . Corruption Blocked . | . . . . Effects 6 | . . 1 5 Matter Fused 2 | . . . 2 Heat Flow Errors 1 | . . 1 . Energy Discharges 1 | . . . 1 Data Loss (minor) 1 | . . . 1 Data Loss (major) 1 | . . . 1 Overload Shots . | . . . . Overflow Damage . | . . . . Projectiles . | . . . . Explosions . | . . . . Melee . | . . . . Knockbacks . | . . . . Impact . | . . . . Kinetic . | . . . . Secondary . | . . . . Self-Inflicted Damage 16 | . . 7 9 Shots . | . . . . Rammed 8 | . . 1 7 Targets Rammed 10 | . . 3 7 Kicked 2 | . . 2 . Crushed . | . . . . Highest Temperature 232 | . . 232 . Average Temperature 125 | . . 125 . Received Heat Transfer 138 | . 6 27 105 Siege Activations . | . . . . Robots Corrupted . | . . . . Combat Hostiles . | . . . . Parts Fried . | . . . . Impact Corruptions . | . . . . Robots Melted . | . . . . Combat Hostiles . | . . . . Parts Melted . | . . . . Heat Transferred . | . . . . Parts Sabotaged . | . . . . Parts Stolen . | . . . . Parts Stripped . | . . . . Power Chain Reactions . | . . . . Alert | -11 -10 -9 -9 ------- Run | Yrd Mat Mat Min Peak Influence 230 | . . 35 230 Initial 5 | . . . 5 Average 37 | . . 7 87 Maximum Alert Level 1 | . . . 1 Low Security (%) 95 | . 100 100 89 Level 1 4 | . . . 10 Level 2 . | . . . . Level 3 . | . . . . Level 4 . | . . . . Level 5 . | . . . . High Security . | . . . . Max Security . | . . . . Squads Dispatched . | . . . . Investigation . | . . . . Extermination . | . . . . Reinforcement . | . . . . Assault . | . . . . Garrison . | . . . . Intercept . | . . . . Searches Triggered . | . . . . Construction Impeded . | . . . . Haulers Reinforced . | . . . . Active Scanning Responses . | . . . . Cargo Convoy Interrupts . | . . . . Stealth | -11 -10 -9 -9 --------- Run | Yrd Mat Mat Min Distress Signals 2 | . . 2 . Communications Jammed . | . . . . Distress Signals . | . . . . Times Spotted 29 | . 2 8 19 Peak Tracking Total 9 | . 2 6 9 Tactical Retreats 6 | . . 1 5 Traps | -11 -10 -9 -9 ------- Run | Yrd Mat Mat Min Traps Triggered 1 | . . 1 . Indirectly . | . . . . Trap Hack Attempts . | . . . . Triggered . | . . . . Disarmed . | . . . . Reprogrammed . | . . . . Reused . | . . . . Traps Extracted . | . . . . Installed . | . . . . Triggered . | . . . . Machines | -11 -10 -9 -9 ---------- Run | Yrd Mat Mat Min Machines Disabled . | . . . . Max in Single Turn . | . . . . Machines Repaired . | . . . . Machines Dismantled . | . . . . Machines Sabotaged . | . . . . Overloaded Fab Kills . | . . . . Hacking | -11 -10 -9 -9 --------- Run | Yrd Mat Mat Min Machines Accessed . | . . . . Terminals . | . . . . Fabricators . | . . . . Repair Stations . | . . . . Recycling Units . | . . . . Scanalyzers . | . . . . Garrison Access . | . . . . Total Hacks . | . . . . Successful . | . . . . Failed . | . . . . Catastrophic . | . . . . Database Lockouts . | . . . . Manual . | . . . . Terminals . | . . . . Fabricators . | . . . . Repair Stations . | . . . . Recycling Units . | . . . . Scanalyzers . | . . . . Garrison Access . | . . . . Terminal Hacks . | . . . . Fabricator Hacks . | . . . . Repair Station Hacks . | . . . . Recycling Unit Hacks . | . . . . Scanalyzer . | . . . . Garrison Access Hacks . | . . . . Unauthorized Hacks . | . . . . Terminals . | . . . . Fabricators . | . . . . Repair Stations . | . . . . Recycling Units . | . . . . Scanalyzers . | . . . . Garrison Access . | . . . . Data Cores Recovered . | . . . . Used . | . . . . Hacking Detections . | . . . . Full Trace Events . | . . . . Feedback Events . | . . . . Feedback Blocked . | . . . . Robot Schematics Acquired . | . . . . Robots Built . | . . . . Authchips . | . . . . Time . | . . . . Total Robot Build Rating . | . . . . Part Schematics Acquired . | . . . . Parts Built . | . . . . Authchips . | . . . . Time . | . . . . Total Part Build Rating . | . . . . Parts Repaired . | . . . . Time . | . . . . Parts Recycled . | . . . . Recycled Matter . | . . . . Retrieved Matter . | . . . . Retrieved Components . | . . . . Parts Scanalyzed . | . . . . Part Schematics Acquired . | . . . . Parts Damaged . | . . . . Bothacking | -11 -10 -9 -9 ------------ Run | Yrd Mat Mat Min Used RIF Installer . | . . . . Robots Hacked . | . . . . Non-combat . | . . . . Combat . | . . . . Robot Hacks Applied . | . . . . Relay Couplers Released . | . . . . Fabnet Peak Effective % . | . . . . Robots Rewired . | . . . . Allies Hacked . | . . . . Hacks Repelled . | . . . . Allies | -11 -10 -9 -9 -------- Run | Yrd Mat Mat Min Total Allies . | . . . . Largest Group . | . . . . Highest-Rated Group . | . . . . Highest-Rated Ally . | . . . . Total Orders . | . . . . Ally Attacks . | . . . . Total Damage . | . . . . Kills . | . . . . Allies Corrupted . | . . . . Allies Melted . | . . . . Intel | -11 -10 -9 -9 ------- Run | Yrd Mat Mat Min Robot Analysis Total . | . . . . Derelict Logs Recovered . | . . . . Drone Launches . | . . . . Drone Recoveries . | . . . . Exploration | -11 -10 -9 -9 ------------- Run | Yrd Mat Mat Min Turns Passed 398 | . 70 169 159 Spaces Moved 464 | 1 57 135 271 Core 227 | . . . 227 Treads . | . . . . Legs 186 | 1 57 128 . Wheels 51 | . . 7 44 Hover . | . . . . Flight . | . . . . Fastest Speed 50 | 120 120 80 50 Average Speed 81 | 120 120 117 55 Slowest Speed 120 | 120 120 120 100 Overloaded Moves . | . . . . Propulsion Burnouts . | . . . . Robots Hopped . | . . . . Cave-ins Triggered . | . . . . Exploration Rate (%) 23 | 2 17 21 53 Regions Visited 3 Branch Regions 1 Pre-discovered Areas . | . . . . Known Exits Taken . | . . . . Unknown Exits Taken 3 | 1 1 1 . Scrap Searched . | . . . . Spaces Dug . | . . . . Terrain Destroyed . | . . . . Melee . | . . . . Projectile . | . . . . AOE . | . . . . Terrain Rammed . | . . . . Walls Destroyed . | . . . . Machines Disabled . | . . . . Actions | -11 -10 -9 -9 --------- Run | Yrd Mat Mat Min Total 486 | . 58 148 280 Wait 1 | . . 1 . Move 462 | . 56 135 271 Hop . | . . . . Pick Up 4 | . 2 2 . Fast Attach . | . . . . Attach 2 | . . 2 . Detach 1 | . . . 1 Swap 1 | . . 1 . Drop 6 | . . 5 1 Fire . | . . . . Melee . | . . . . Ram 7 | . . . 7 Kick 2 | . . 2 . Crush . | . . . . Escape Stasis . | . . . . Rewire . | . . . . Trap . | . . . . Miscellaneous . | . . . . Route ------- -11/Scrapyard -10/Materials -9/Materials (discovered 2 exits: [*Min x2]) -9/Mines History --------- Turn | Location | Event 1 | -11/Scrapyard | Discovered new exit (range 0) 1 | -11/Scrapyard | Entered Materials 62 | -10/Materials | Discovered new exit (range 7) 71 | -10/Materials | Entered another Materials area 71 | -9/Materials | Evolved 2 slots: Utility x2 212 | -9/Materials | Discovered new exit (range 13) 222 | -9/Materials | Discovered new exit (range 16) 240 | -9/Materials | Entered Mines 262 | -9/Mines | Lost 3 parts (1p2n) 279 | -9/Mines | Core integrity fell below 50% 305 | -9/Mines | Build established: Mutant 320 | -9/Mines | Received a Rocket Launcher from a helpful Derelict 343 | -9/Mines | Core integrity fell below 20% 399 | -9/Mines | Destroyed by S-10 Pest with Light Assault Rifle Last Messages --------------- System corrupted: Matter fused (-9). A derelict emerges from the shadows. 1H-UEY(g): "Some of my friends down here think you need a mining laser when you travel the depths." 1H-UEY(g): "Pshh... whatever." 1H-UEY(g): "Everyone knows a good old rocket launcher goes a long way." 1H-UEY(g): "Need to get rid of a swarm? Done. Need a big hole in the wall? Done." 1H-UEY(g): "Need a small hole in the wall? Leave that to the mining laser wimps, I say!" 1H-UEY(g): "Would you like a rocket launcher? I know I would if I were you, so I'm going to lend you mine." 1H-UEY(g) slips back into the shadows. Slammed into G-34 Mercenary. Slammed into L-31 Rogue. Destabilizing: System corrupted (+1). Slammed into L-31 Rogue. System corrupted: Component data lost. System corrupted: Energy discharge (-32). K-01 Serf cleans the Matter Pump. Map ----- +----------------------------------------------------+ | ??# #???????# #????????????????? | | ??# #???????# #????????????????? | | ??# #???????# ####?????????????? | | ??# #???????# ##????????????? | | ??# #??????## """ #????????????? | | ??# #?????## """ #????????????? | | ??#### ##?????# """ #????????????? | | ?????# #??????# #????????????? | | ?????# #?????## ##???????????? | | ?????# #?????# ##??????????? | | ?????# #?????# ##?????????? | | ?????# #?????## # #?????????? | | ?????# #??????#### ## #????????? | | ?????# #?????????# ## #???????? | | ?????# ########### ### #???????? | | ?????# ## #??## ##???????? | | ?????########## ## #????###????????? | | ????########### ## "##??????????????? | | ????# !%"#??????????????? | | ????# ####### s### " #??????????????? | | ??### ###???# #?## #??????????????? | | ??# #???#s #??# #??????????????? | | ??# #??##//##?# #??????????????? | | ??# #??# #?? ??????????????? | | ??# #??# #?? ?????????????? | | ??# """ #??#@ #?? ????????????? | | ??# """ #?# #?? ##???????????? | | ??# """ #?### #?? ##????????????? | | ??# #???#####??####?????????????? | | ??#######???????????????????????????? | | ????????????????????????????????????? | | ????????????????????????????????????? | | ????????????????????????????????????? | | ????????????????????????????????????? | | ????????????????????????????????????? | | | | | | | | | | | | | | | | | | | | | | | | | | | | | | | +----------------------------------------------------+ Best States ------------- Heat Dissipation 28 Energy Generation 14 Energy Capacity 250 Matter Stores 297 Matter Capacity 300 Sight Range 16 Terrain Scan Density 10 Evasion (%) 55 Item Schematics ----------------- None Robot Schematics ------------------ None Fabricated ------------ Nothing Alien Tech Used ----------------- None Achievements -------------- None Challenges ------------ None Game ------ Seed PulseAlertObliterator Manual? 0 Play Time 00:05:10 Cumulative 160.2 hours Start 2024.08.02 @ 23:32:06 End 2024.08.02 @ 23:35:50 Sessions 1 Manual Loads 0 Difficulty Rogue Special Mode None Game No. 255 Rogue 253 Adventurer 2 Explorer 0 Win Type - Total 4 Types 3/0/0/1/0/0/0/0/0 Lore% 56 Gallery% 61 Achievement% 51 Wizard Run 0 Options --------- Layout 0 ASCII 0 Keyboard 1 Movement Numpad Keybinds 1 Fullscreen 2 Font 18/SmallcapsGlow Map View 76x50 Zoom Use 0% Tactical HUD 1 Map Filters NONE Filters NONE Steam 1 RUN: 1e20a99f-1b1b-4f63-804e-990cf7a4b1d4